bitfinex-derivatives/quotes_ETHF0:USTF0_20250831
["timestamp","ask_amount","ask_price","bid_price","bid_amount"]
[1756637833457,0.1919,4456.6,4456.5,0.4878]
[1756637833655,0.1919,4456.1,4456.0,3.5027]
[1756637833859,0.4784,4456.0,4455.6,32.299]
[1756637834047,0.2865,4455.9,4455.7,0.5219]
[1756637834250,0.4784,4455.8,4455.7,0.4878]
[1756637834456,0.2865,4455.7,4455.6,32.526]
[1756637835460,0.2865,4455.7,4455.6,32.299]
[1756637835660,0.2865,4455.7,4455.6,32.526]
[1756637836758,0.4784,4455.7,4455.6,0.7148]
[1756637839567,0.4784,4455.7,4455.6,0.4878]
[1756637839761,0.4784,4455.7,4455.6,0.7148]
[1756637850373,0.4784,4455.7,4455.6,0.4878]
[1756637850575,0.4784,4455.7,4455.6,0.7148]
[1756637853279,0.4784,4455.7,4455.6,0.4878]
[1756637857988,0.4784,4455.7,4455.4,0.227]
[1756637858283,0.2765,4455.6,4455.4,0.5076]
[1756637858582,0.4726,4455.5,4455.4,0.7093]
[1756637865588,0.4726,4455.5,4455.4,0.4823]
[1756637865785,0.4726,4455.5,4455.4,0.227]
[1756637865979,0.4726,4455.5,4455.1,0.2806]
[1756637866286,0.4726,4455.5,4455.2,0.227]
[1756637866780,0.1961,4455.5,4455.2,0.5076]
[1756637866987,0.1961,4455.3,4455.2,0.5076]
[1756637867184,0.4726,4455.3,4455.2,0.5076]
[1756637867980,0.4726,4455.3,4455.2,0.4823]
[1756637868192,0.4726,4455.3,4455.2,0.7093]
[1756637869887,0.4726,4455.3,4454.9,3.2078]
[1756637870092,1.19868074,4456.9,4454.5,0.2017]
[1756637870093,0.4726,4454.6,4454.5,0.2017]
[1756637870392,3.6804,4454.6,4454.3,0.2806]
[1756637870588,3.6804,4454.6,4453.8,0.45151]
[1756637870790,3.6804,4454.6,4453.9,0.2806]
[1756637870988,0.2765,4454.5,4454.0,0.2806]
[1756637871188,3.2078,4454.6,4454.0,0.2806]
[1756637871189,0.4726,4454.1,4454.0,0.4823]
[1756637871389,0.4726,4454.1,4454.0,0.7093]
[1756637875193,0.2765,4454.1,4454.0,0.7093]
[1756637875388,0.4726,4454.1,4454.0,0.4823]
[1756637875589,3.6804,4454.1,4454.0,0.4823]
[1756637877590,3.6804,4454.1,4454.0,0.2017]
[1756637877791,0.4726,4453.4,4453.3,0.4823]
[1756637880995,0.2765,4453.5,4453.3,0.2017]
[1756637881199,0.2765,4453.5,4453.4,0.4823]
[1756637882192,0.4726,4453.5,4453.4,0.4823]
[1756637883601,0.2765,4453.8,4453.5,0.2806]
[1756637883897,0.4726,4453.8,4453.7,0.4823]
[1756637884095,3.4843,4454.1,4453.8,0.2806]
[1756637884299,3.2078,4454.1,4454.0,0.2017]
[1756637884501,3.2078,4454.1,4454.0,0.4823]
[1756637884799,3.4843,4454.1,4454.0,0.4823]
[1756637884994,3.6804,4454.1,4454.0,0.4823]
[1756637886596,3.2078,4454.1,4454.0,0.4823]
[1756637887704,3.6977,4454.6,4454.5,0.1971]
[1756637887902,3.2078,4454.6,4454.5,0.4761]
[1756637888698,3.4978,4454.6,4454.5,0.4761]
[1756637889101,0.29,4454.6,4454.5,0.4761]
[1756637889901,0.4899,4454.6,4454.5,0.4761]
[1756637891102,3.2078,4454.9,4454.8,0.4761]
[1756637891407,3.2078,4455.4,4454.8,0.1971]
[1756637891602,0.4899,4455.3,4455.2,0.4761]
[1756637895209,3.2078,4455.4,4455.2,0.1971]
[1756637895408,3.2078,4455.4,4455.3,0.4761]
[1756637895809,3.4978,4455.4,4455.3,0.4761]
[1756637896207,3.6977,4455.4,4455.3,0.4761]
[1756637908310,0.4899,4455.4,4455.3,0.4761]
[1756637909812,0.4899,4454.6,4454.5,3.2078]
[1756637910419,3.4077,4454.6,4454.2,32.329]
[1756637910619,0.1999,4454.4,4454.3,0.227]
[1756637910815,0.29,4454.3,4454.2,32.329]
[1756637911013,0.29,4454.3,4454.2,32.556]
[1756637912615,0.29,4454.3,4454.2,32.329]
[1756637914322,0.29,4454.3,4454.2,32.556]
[1756637915020,0.4899,4454.3,4454.2,0.227]
[1756637915221,0.67316404,4454.3,4454.2,0.227]
[1756637917022,0.4899,4454.3,4454.2,0.227]
[1756637917226,0.67320498,4454.3,4454.2,0.227]
[1756637918928,0.67320498,4454.3,4454.2,0.5053]
[1756637920334,0.67320498,4454.3,4454.2,0.227]
[1756637921529,0.67320498,4454.3,4454.2,0.5053]
[1756637922932,0.67320498,4454.3,4454.2,0.227]
[1756637924737,0.67320498,4454.3,4454.2,0.5053]
[1756637926738,0.67320498,4454.3,4454.2,0.692]
[1756637927839,0.4899,4454.3,4454.2,0.692]
[1756637928032,0.2802,4453.5,4453.3,0.2783]
[1756637928239,0.65140441,4453.4,4453.1,0.227]
[1756637928434,0.37120441,4453.3,4453.2,0.2783]
[1756637928739,0.65140441,4453.3,4453.2,0.465]
[1756637931042,0.65140441,4453.3,4453.2,0.692]
[1756637931640,0.65142577,4453.3,4453.2,0.692]
[1756637938543,0.65158475,4453.3,4453.2,0.692]
[1756637941347,0.18328475,4453.3,4453.2,0.692]
[1756637941646,0.2802,4454.3,4454.2,0.465]
[1756637941837,0.4683,4454.3,4454.2,0.692]
[1756637943146,0.1881,4453.6,4453.3,0.2783]
[1756637943449,0.4683,4453.2,4453.1,0.1867]
[1756637943646,0.4683,4453.2,4453.1,0.4137]
[1756637943848,0.4683,4453.2,4453.1,0.692]
[1756637947353,0.2802,4453.2,4453.1,0.692]
[1756637948041,0.2838,4453.8,4453.1,0.4137]
[1756637948246,0.2838,4453.8,4453.2,0.279]
[1756637951554,0.1968,4453.3,4453.2,0.4682]
[1756637951854,0.4806,4453.3,4453.2,0.4682]
[1756637957355,0.4806,4453.3,4453.2,0.6952]
[1756637957560,0.2838,4454.3,4453.3,0.279]
[1756637961756,0.2838,4454.2,4453.4,0.279]
[1756637965157,0.4806,4454.2,4454.1,0.4682]
[1756637965353,0.4806,4454.2,4454.1,0.6952]
[1756637974851,0.2838,4454.9,4454.1,0.4162]
[1756637975057,0.2838,4454.9,4454.2,0.279]
[1756637976456,0.4806,4454.9,4454.8,0.1892]
[1756637976657,0.4806,4454.9,4454.8,0.4682]
[1756637978359,0.4806,4454.9,4454.8,0.1892]
[1756637978560,0.4806,4454.9,4454.2,0.2949]
[1756637978760,0.298,4454.8,4454.3,0.2949]
[1756637979453,0.1875,4454.4,4454.3,0.478]
[1756637979861,0.4855,4454.4,4454.3,0.478]
[1756637980359,0.1875,4454.9,4454.8,0.1831]
[1756637980558,0.4855,4454.9,4454.8,0.478]
[1756637981664,0.4855,4454.9,4454.7,0.222]
[1756637981665,3.2078,4455.0,4454.9,0.478]
[1756637982662,0.298,4455.2,4454.9,0.1831]
[1756637982963,0.298,4455.2,4455.1,0.478]
[1756637984066,0.4855,4455.2,4455.1,0.478]
[1756637986366,0.298,4455.8,4455.2,0.2949]
[1756637986567,0.4855,4455.8,4455.7,0.1831]
[1756637986964,0.4855,4455.8,4455.5,0.2949]
[1756637988770,0.4855,4455.8,4455.3,0.226]
[1756637989169,0.4855,4455.8,4455.4,0.2949]
[1756637989366,0.4855,4455.8,4455.3,0.226]
[1756637989667,0.4855,4455.8,4455.4,0.2949]
[1756637990370,0.4855,4455.8,4455.3,0.226]
[1756637990566,0.4855,4455.8,4455.4,0.2949]
[1756637990765,0.4855,4455.8,4455.3,0.226]
[1756637991269,0.4855,4455.8,4455.4,0.2949]
[1756637991471,0.4855,4455.8,4455.3,0.226]
[1756637991865,0.4855,4455.8,4455.4,0.2949]
[1756637992063,0.4855,4455.8,4455.3,0.226]
[1756637992270,0.4855,4455.8,4455.4,0.2949]
[1756637992473,0.4855,4455.8,4455.3,0.226]
[1756637992671,0.4855,4455.8,4455.4,0.2949]
[1756637992874,0.4855,4455.8,4455.3,0.226]
[1756637993373,0.4855,4455.8,4455.4,0.2949]
[1756637993569,0.4855,4455.8,4455.3,0.226]
[1756637993972,0.4855,4455.8,4455.0,3.2078]
[1756637994168,0.1875,4455.5,4455.4,0.5209]
[1756637994470,0.4855,4455.5,4455.4,0.704]
[1756637995270,3.2078,4456.0,4455.4,0.704]
[1756637995474,0.1875,4456.0,4455.9,0.478]
[1756637995870,0.4855,4456.0,4455.9,0.478]
[1756638001772,0.298,4455.9,4455.7,0.2949]
[1756638001974,0.4855,4455.2,4455.1,1.912]
[1756638002277,0.4855,4455.2,4455.1,0.704]
[1756638003178,0.298,4455.2,4455.1,0.704]
[1756638004081,0.298,4455.2,4455.1,0.478]
[1756638004284,0.4855,4455.2,4455.1,0.704]
[1756638004473,0.4855,4455.1,4455.0,3.2078]
[1756638004980,0.4855,4455.1,4455.0,3.4338]
[1756638005582,0.4855,4455.1,4455.0,3.2078]
[1756638005782,0.4855,4455.1,4455.0,3.4338]
[1756638007285,0.4855,4455.1,4455.0,0.226]
[1756638008486,0.4855,4455.1,4454.6,0.2949]
[1756638008785,0.4855,4455.1,4455.0,0.226]
[1756638009985,0.4855,4455.1,4455.0,0.7012]
[1756638010181,3.2078,4456.1,4455.0,0.7012]
[1756638010487,3.2078,4456.1,4455.9,0.1838]
[1756638010488,0.4914,4456.0,4455.9,0.1838]
[1756638010682,0.4914,4456.0,4455.9,0.4752]
[1756638011883,0.4914,4456.0,4455.8,0.226]
[1756638013883,0.3003,4455.9,4455.8,0.5174]
[1756638014089,0.4914,4455.9,4455.8,0.7012]
[1756638020292,0.4914,4455.9,4455.8,0.4752]
[1756638020487,0.4914,4455.9,4455.8,0.7012]
[1756638021289,0.1911,4456.4,4456.3,0.1838]
[1756638021483,0.4914,4456.4,4455.5,3.2078]
[1756638021791,0.4914,4456.4,4455.6,0.5174]
[1756638021792,0.1911,4455.7,4455.6,0.5174]
[1756638021995,0.4914,4455.7,4455.6,0.7012]
[1756638024590,0.4914,4455.7,4455.6,0.4752]
[1756638024790,0.4914,4455.7,4455.6,0.7012]
[1756638031196,0.3003,4455.1,4455.0,2.01668934]
[1756638031396,0.4914,4455.1,4455.0,0.226]
[1756638033801,0.4914,4455.0,4454.9,3.4992]
[1756638034003,0.4914,4455.0,4454.9,3.7252]
[1756638034805,0.4914,4455.0,4454.9,3.4992]
[1756638035104,0.4914,4455.0,4454.9,3.7252]
[1756638035304,0.4914,4455.0,4454.9,3.909]
[1756638036809,0.3003,4455.6,4454.9,3.909]
[1756638037105,0.4914,4455.6,4455.5,0.4752]
[1756638037304,0.4914,4455.6,4455.5,0.7012]
[1756638042404,3.2078,4456.3,4455.5,0.7012]
[1756638042604,0.4818,4456.2,4456.1,0.187]
[1756638042807,0.4818,4456.2,4456.1,0.4763]
[1756638043908,33.52168074,4457.7,4456.7,0.4763]
[1756638043909,0.4818,4456.8,4456.7,0.4763]
[1756638044506,3.2078,4456.9,4456.8,0.4763]
[1756638044704,0.2947,4456.9,4456.8,0.4763]
[1756638045511,0.2947,4457.5,4456.8,0.187]
[1756638045708,0.4818,4457.5,4457.4,0.187]
[1756638045908,0.4818,4457.5,4457.4,0.4763]
[1756638047420,0.2947,4457.5,4457.4,0.4763]
[1756638047811,0.4818,4457.5,4457.4,0.4763]
[1756638048617,0.2947,4457.4,4457.0,3.2078]
[1756638048918,0.4818,4457.1,4457.0,0.187]
[1756638049119,0.4818,4457.1,4457.0,0.413]
[1756638049320,0.4818,4457.1,4457.0,0.7023]
[1756638050324,3.2078,4457.6,4457.0,0.7023]
[1756638050624,0.4818,4457.5,4457.4,0.187]
[1756638050921,0.4818,4457.5,4457.4,0.4763]
[1756638054627,0.4818,4457.5,4457.4,0.187]
[1756638054931,0.4818,4457.5,4457.4,0.4763]
[1756638056732,0.4818,4457.5,4457.4,0.7023]
[1756638068440,0.4818,4457.5,4457.4,0.413]
[1756638069242,0.4818,4457.5,4457.4,0.7141]
[1756638070439,0.291,4457.4,4456.9,3.2078]
[1756638070636,0.1891,4456.7,4456.4,3.2078]
[1756638070830,0.1891,4456.5,4456.4,3.2078]
[1756638071038,0.4801,4456.5,4456.2,32.6221]
[1756638071239,0.4801,4456.4,4456.3,0.226]
[1756638071441,0.291,4456.3,4456.2,32.6221]
[1756638071742,0.291,4456.3,4456.2,32.547]
[1756638074942,0.291,4456.3,4456.2,32.321]
[1756638075132,0.1891,4456.2,4455.5,0.3011]
[1756638075440,0.1891,4456.2,4455.4,5.22448934]
[1756638075441,0.4801,4455.5,4455.4,3.7116]
[1756638075642,0.4801,4455.5,4455.4,3.9376]
[1756638076543,0.4801,4455.5,4455.4,3.7116]
[1756638076741,0.1891,4455.0,4454.9,3.4105]
[1756638076942,0.4801,4455.0,4454.9,3.9376]
[1756638078542,0.4801,4455.0,4454.9,3.7116]
[1756638078741,0.4801,4455.0,4454.9,3.9376]
[1756638081246,3.2078,4455.9,4454.9,3.9376]
[1756638081448,0.22445,4455.8,4455.0,0.3011]
[1756638081646,0.291,4455.7,4455.0,0.3011]
[1756638083650,0.1891,4455.2,4455.1,0.4287]
[1756638083951,0.4801,4455.2,4455.1,0.7298]
[1756638084348,3.2078,4455.9,4455.1,0.4287]
[1756638084547,0.4801,4455.8,4455.7,0.2027]
[1756638084747,0.4801,4455.8,4455.7,0.5038]
[1756638084949,0.4801,4455.8,4455.6,0.226]
[1756638085447,0.291,4455.7,4455.6,0.226]
[1756638085648,0.4801,4455.7,4455.6,0.226]
[1756638088556,0.4801,4455.7,4455.6,0.3011]
[1756638088854,0.4801,4455.7,4455.6,0.5038]
[1756638090551,3.2078,4455.9,4455.7,0.3011]
[1756638090552,3.4988,4455.9,4455.7,0.3011]
[1756638090758,3.2078,4455.9,4455.8,0.2027]
[1756638090959,3.2078,4455.9,4455.8,0.5038]
[1756638091762,3.4988,4455.9,4455.8,0.5038]
[1756638091956,3.6879,4455.9,4455.8,0.5038]
[1756638092151,0.291,4455.8,4455.0,0.5038]
[1756638092351,3.2078,4455.9,4455.0,0.2027]
[1756638092352,0.4801,4455.1,4455.0,0.2027]
[1756638092557,0.1891,4455.1,4455.0,0.3011]
[1756638092758,0.1891,4455.1,4455.0,0.5271]
[1756638092953,0.1891,4455.1,4455.0,0.7298]
[1756638093162,0.4801,4455.1,4455.0,0.7298]
[1756638094663,0.291,4455.1,4455.0,0.7298]
[1756638094859,3.2078,4455.9,4455.0,0.4287]
[1756638095060,0.291,4455.8,4455.1,0.3011]
[1756638096169,0.1891,4455.2,4455.1,0.5038]
[1756638096466,0.4801,4455.2,4455.1,0.5038]
[1756638096866,0.4801,4455.2,4455.1,0.7298]
[1756638111777,0.2841,4455.8,4455.2,0.2846]
[1756638111976,3.2078,4455.9,4455.8,0.4835]
[1756638111977,3.6858,4455.9,4455.8,0.4835]
[1756638112877,3.6858,4455.9,4455.7,0.226]
[1756638114279,3.6858,4455.9,4455.4,0.2846]
[1756638114479,3.6858,4455.9,4455.5,0.226]
[1756638114779,0.2841,4455.8,4454.8,0.2846]
[1756638114980,0.2841,4455.8,4454.9,0.226]
[1756638115286,0.478,4455.0,4454.9,0.7095]
[1756638116182,0.478,4455.0,4454.9,0.4835]
[1756638116383,0.478,4455.0,4454.9,0.7095]
[1756638119890,0.478,4455.0,4454.9,0.4835]
[1756638120090,0.478,4455.0,4454.9,0.7095]
[1756638121691,0.478,4455.0,4454.6,2.01668934]
[1756638121692,0.1939,4454.5,4454.4,2.01668934]
[1756638121888,0.1939,4454.0,4453.9,5.50908934]
[1756638122088,0.478,4454.0,4453.9,3.9173]
[1756638124093,0.478,4454.0,4453.9,3.6913]
[1756638124394,0.478,4454.0,4453.9,3.9173]
[1756638125895,0.2841,4454.6,4454.0,0.2846]
[1756638129595,0.4715,4454.1,4454.0,0.4835]
[1756638130500,0.4715,4454.1,4454.0,0.7095]
[1756638131493,0.2776,4454.6,4454.0,0.4249]
[1756638131699,0.4708,4454.6,4454.5,0.4624]
[1756638131898,0.4708,4454.6,4454.5,0.6884]
[1756638132696,0.4708,4454.6,4454.5,0.4107]
[1756638132903,0.4708,4454.6,4454.5,0.226]
[1756638134399,0.4708,4454.6,4454.2,0.2777]
[1756638134604,0.4708,4454.6,4454.4,0.226]
[1756638135200,0.4708,4454.6,4454.2,0.2777]
[1756638135402,0.4708,4454.6,4454.3,0.226]
[1756638135604,0.4708,4454.6,4454.3,0.5037]
[1756638135808,0.4708,4454.5,4454.4,0.4624]
[1756638136001,0.4708,4454.5,4454.4,0.226]
[1756638136810,0.1932,4453.4,4453.3,3.3925]
[1756638137101,0.4708,4453.4,4453.3,3.6702]
[1756638137309,0.4708,4453.4,4453.3,0.6884]
[1756638138201,0.2776,4453.8,4453.4,0.2777]
[1756638138408,0.4708,4453.8,4453.7,0.4624]
[1756638138798,0.4708,4453.8,4453.7,0.6884]
[1756638141308,0.2776,4454.1,4453.8,0.2777]
[1756638141503,0.2776,4454.4,4454.0,0.1847]
[1756638141703,0.2776,4454.4,4454.3,0.1847]
[1756638141904,0.2776,4454.4,4454.3,0.4624]
[1756638142106,3.4338,4455.1,4454.3,0.4624]
[1756638142304,0.2776,4455.0,4454.4,0.2777]
[1756638143106,0.4708,4454.5,4454.4,0.4624]
[1756638144207,0.1932,4454.5,4454.2,0.5037]
[1756638144406,0.4708,4454.3,4454.2,0.2777]
[1756638145104,0.4708,4454.3,4454.2,0.4624]
[1756638147810,0.4708,4454.3,4454.1,0.226]
[1756638148207,0.2776,4454.2,4454.1,0.6884]
[1756638148513,0.4708,4454.2,4454.1,0.6884]
[1756638149813,0.4708,4454.2,4453.6,3.2078]
[1756638150117,0.4708,4453.7,4453.6,3.6702]
[1756638150417,0.4708,4453.7,4453.6,3.8962]
[1756638151818,0.4708,4453.7,4453.6,3.6702]
[1756638152119,0.4708,4453.7,4453.6,3.8962]
[1756638153414,0.2776,4453.6,4453.2,0.2777]
[1756638153621,3.2078,4454.2,4453.2,0.2777]
[1756638153622,0.4708,4453.3,4453.2,0.2777]
[1756638153817,0.4708,4453.3,4453.2,0.5037]
[1756638154017,0.4708,4453.3,4453.2,0.6884]
[1756638160625,0.4708,4453.3,4453.2,0.4624]
[1756638160820,0.4708,4453.3,4453.2,0.6884]
[1756638165831,0.4708,4453.3,4453.2,0.1847]
[1756638166131,0.4697,4453.3,4453.2,0.226]
[1756638166327,0.4697,4453.3,4453.2,0.5063]
[1756638166527,0.4697,4453.3,4453.2,0.69]
[1756638168532,0.4697,4453.3,4453.2,0.464]
[1756638168731,0.4697,4453.3,4453.2,0.69]
[1756638169728,0.4697,4453.3,4453.2,0.1837]
[1756638170034,0.4697,4453.3,4453.2,0.4097]
[1756638170532,0.4697,4453.3,4453.2,0.69]
[1756638172434,0.4697,4453.3,4453.2,0.464]
[1756638172634,0.4697,4453.3,4453.2,0.69]
[1756638176240,0.4697,4453.3,4453.2,0.464]
[1756638176538,0.4697,4453.3,4453.2,0.69]
[1756638179241,0.4697,4453.3,4453.2,0.464]
[1756638179441,0.4697,4453.3,4453.2,0.69]
[1756638184634,0.41776,4453.3,4452.6,32.328]
[1756638184941,0.41776,4453.3,4452.0,2.82525919]
[1756638184942,0.1838,4452.2,4452.1,0.464]
[1756638185143,0.2765,4452.3,4452.2,0.2803]
[1756638185445,0.2765,4452.3,4452.1,0.4097]
[1756638185446,3.2078,4452.4,4452.3,0.464]
[1756638186142,3.2078,4452.4,4452.3,0.69]
[1756638186446,3.4843,4452.4,4452.3,0.69]
[1756638187147,3.2078,4452.4,4452.3,0.69]
[1756638187349,3.4843,4452.4,4452.3,0.69]
[1756638187549,3.4843,4452.4,4452.3,0.464]
[1756638187849,3.4843,4452.4,4452.3,0.69]
[1756638188350,3.6681,4452.4,4452.3,0.69]
[1756638190448,3.6681,4452.4,4452.3,0.464]
[1756638190651,3.6681,4452.4,4452.3,0.226]
[1756638191952,3.3916,4452.4,4452.3,0.226]
[1756638192547,3.6717,4452.4,4452.0,0.2758]
[1756638192757,0.1942,4451.7,4451.6,0.4633]
[1756638192952,0.4743,4451.7,4451.6,0.91392]
[1756638193848,0.4743,4451.7,4451.6,0.6893]
[1756638195354,0.4743,4451.7,4451.6,0.4633]
[1756638195553,0.4743,4451.7,4451.6,0.6893]
[1756638196657,0.4743,4451.7,4451.6,0.4633]
[1756638196860,0.4743,4451.7,4451.6,0.6893]
[1756638206879,0.4743,4452.3,4452.2,0.1875]
[1756638207079,0.4743,4452.3,4452.2,0.6893]
[1756638207278,0.2801,4452.2,4451.5,3.2078]
[1756638207476,0.4743,4451.6,4451.5,3.2078]
[1756638207673,0.4743,4451.6,4451.5,3.4338]
[1756638207872,4.1942,4451.6,4450.6,2.01668934]
[1756638208073,0.4743,4450.7,4450.4,3.2078]
[1756638208278,0.4743,4450.7,4450.6,0.4633]
[1756638208579,0.4743,4450.7,4450.6,0.6893]
[1756638209676,0.4743,4450.7,4450.4,3.4836]
[1756638209877,0.4743,4450.7,4450.5,0.226]
[1756638210280,0.4743,4450.7,4450.6,0.4633]
[1756638211181,0.1942,4450.7,4450.4,3.2078]
[1756638211478,0.4743,4450.6,4450.5,0.6893]
[1756638212782,0.2801,4450.6,4450.5,0.6893]
[1756638212977,0.4743,4450.6,4450.5,0.6893]
[1756638214079,0.4743,4450.6,4450.5,0.4633]
[1756638214282,0.4743,4450.6,4450.5,0.226]
[1756638214778,0.4743,4450.6,4450.4,3.2078]
[1756638214779,0.2801,4450.5,4450.4,3.2078]
[1756638214985,0.4743,4450.5,4450.4,0.226]
[1756638215386,0.66229271,4450.5,4450.4,0.226]
[1756638215883,0.1942,4450.2,4450.1,0.226]
[1756638216088,0.66229271,4450.2,4450.1,0.226]
[1756638216289,0.66229271,4450.2,4448.7,1.434]
[1756638216290,0.1942,4449.2,4448.4,2.01668934]
[1756638216586,0.4743,4448.8,4448.7,0.6893]
[1756638216895,0.66229271,4448.8,4448.7,0.6893]
[1756638217087,0.4743,4448.8,4448.7,0.6893]
[1756638217389,0.4743,4448.5,4448.4,3.6711]
[1756638217588,0.6620567,4448.5,4448.4,3.8971]
[1756638217788,0.1877567,4448.5,4448.4,3.8971]
[1756638217989,0.2751,4449.0,4448.5,0.2927]
[1756638218191,0.38668903,4448.9,4448.8,0.1945]
[1756638218386,0.66178903,4448.9,4448.8,0.7132]
[1756638220694,0.474,4448.9,4448.8,0.7132]
[1756638220882,0.66143557,4448.9,4448.8,0.7132]
[1756638221283,0.66143651,4448.9,4448.8,0.7132]
[1756638222596,0.66136043,4448.9,4448.8,0.7132]
[1756638222985,0.474,4448.9,4448.8,0.7132]
[1756638223192,0.66136042,4448.9,4448.8,0.7132]
[1756638223492,0.66129475,4448.9,4448.8,0.7132]
[1756638224089,0.474,4448.9,4448.8,0.7132]
[1756638224489,0.2751,4449.7,4448.9,0.2927]
[1756638224690,0.474,4449.5,4449.4,0.1945]
[1756638224889,0.66124771,4449.5,4449.4,0.7132]
[1756638228095,0.474,4449.5,4449.4,3.921]
[1756638228899,0.474,4450.2,4450.1,0.4872]
[1756638229093,0.66123338,4450.2,4450.1,0.4872]
[1756638229690,0.1989,4449.9,4449.8,0.226]
[1756638229890,0.66123338,4449.9,4449.8,0.226]
[1756638230588,0.66123338,4449.9,4449.8,0.5187]
[1756638230990,0.66123338,4449.9,4449.8,0.7132]
[1756638233294,0.66147481,4449.9,4449.8,0.7132]
[1756638236692,0.18747481,4449.9,4449.8,0.7132]
[1756638237498,0.46257481,4449.9,4449.8,0.7132]
[1756638237891,0.18747481,4449.9,4449.8,0.7132]
[1756638238092,0.18747481,4449.9,4449.8,4.93793]
[1756638238694,0.18747481,4449.9,4449.8,4.7132]
[1756638239397,0.18747481,4449.9,4449.8,0.7132]
[1756638240596,0.18747481,4449.9,4449.8,0.4872]
[1756638240795,0.18747481,4449.9,4449.8,0.7132]
[1756638241399,0.66147481,4449.9,4449.8,0.226]
[1756638241797,0.66147481,4449.9,4449.5,0.2927]
[1756638241998,0.474,4449.6,4449.5,0.1945]
[1756638242308,0.66147481,4449.6,4449.5,0.4205]
[1756638243103,0.66147481,4449.6,4449.5,0.7132]
[1756638243505,0.66147481,4449.6,4449.5,0.4872]
[1756638243711,0.66147481,4449.6,4449.5,0.7132]
[1756638244409,0.1989,4449.4,4449.3,32.366]
[1756638244597,0.66147481,4449.4,4449.3,32.592]
[1756638246806,0.2751,4449.3,4448.8,3.2078]
[1756638247108,0.474,4448.9,4448.4,0.2927]
[1756638247304,0.474,4448.6,4448.5,0.7132]
[1756638247504,0.66147481,4448.6,4448.5,0.7132]
[1756638247907,0.66147481,4448.6,4448.5,0.4872]
[1756638248207,0.66147481,4448.6,4448.5,0.7132]
[1756638249105,0.18747481,4448.6,4448.5,0.7132]
[1756638249511,0.18747481,4448.6,4448.5,0.4872]
[1756638249713,0.18747481,4448.6,4448.5,0.7132]
[1756638250211,0.67997481,4448.6,4448.5,0.7132]
[1756638251410,0.67997481,4448.6,4448.5,0.4872]
[1756638251911,0.67997481,4448.6,4448.5,0.4205]
[1756638252311,0.67997481,4448.6,4448.5,0.7095]
[1756638253310,0.4925,4448.6,4448.5,0.7095]
[1756638253510,0.68331352,4448.6,4448.5,0.7095]
[1756638258819,0.19081352,4448.6,4448.5,0.7095]
[1756638259024,0.19081352,4448.6,4448.5,4.7095]
[1756638259223,3.2078,4450.1,4448.5,6.70110203]
[1756638259416,0.2911,4450.0,4448.6,0.34525]
[1756638259616,0.2911,4450.0,4448.8,0.1205]
[1756638259818,0.2911,4450.0,4449.0,0.1205]
[1756638260010,0.2911,4450.0,4449.9,0.191]
[1756638260011,0.4925,4450.0,4449.9,0.191]
[1756638260222,0.4925,4450.0,4449.9,0.226]
[1756638263429,0.4925,4450.0,4449.9,0.5375]
[1756638264022,0.4925,4450.0,4449.9,0.226]
[1756638270536,0.4925,4450.0,4449.9,0.417]
[1756638270836,0.4925,4450.0,4449.9,0.5377]
[1756638271238,0.6808229,4450.0,4449.9,0.5377]
[1756638272834,0.1883229,4450.0,4449.9,0.5377]
[1756638273436,0.4794229,4450.0,4449.9,0.5377]
[1756638274337,0.1883229,4450.0,4449.9,4.76241999]
[1756638274636,0.68085155,4450.0,4449.9,0.191]
[1756638274838,0.2911,4449.9,4449.3,5.34518934]
[1756638275131,0.47945155,4449.8,4449.5,0.1207]
[1756638275340,0.2911,4449.8,4449.7,0.3117]
[1756638275538,0.67871953,4449.8,4449.7,0.3117]
[1756638277134,0.67871953,4449.8,4449.7,0.5377]
[1756638277334,0.67871953,4449.8,4449.4,0.1207]
[1756638277536,0.4925,4449.6,4449.5,0.226]
[1756638277836,0.4925,4449.6,4449.3,5.22448934]
[1756638277837,0.3029,4449.5,4449.3,3.2078]
[1756638278037,0.68109293,4449.4,4449.3,3.2078]
[1756638278234,0.68109293,4449.4,4449.3,3.4338]
[1756638278637,0.68109293,4449.4,4449.3,3.7479]
[1756638279142,0.68109293,4449.4,4449.3,3.6271]
[1756638279635,0.68109293,4449.4,4449.2,0.226]
[1756638279838,0.68109293,4449.3,4449.2,0.226]
[1756638281840,0.37825083,4449.3,4449.1,0.227]
[1756638282044,0.68115083,4449.2,4449.1,0.227]
[1756638283343,0.3029,4449.1,4449.0,0.227]
[1756638283543,0.68115083,4449.1,4449.0,0.227]
[1756638284136,0.68115083,4449.1,4448.6,3.2078]
[1756638284343,0.3029,4448.9,4448.7,0.227]
[1756638284543,0.68115083,4448.8,4448.7,0.227]
[1756638284844,0.68115083,4448.8,4448.7,0.5411]
[1756638285239,0.68115083,4448.8,4448.7,0.3141]
[1756638285440,0.6812052,4448.8,4448.7,0.5401]
[1756638285948,0.6812052,4448.8,4448.7,0.3141]
[1756638286143,0.6812052,4448.8,4448.7,0.5401]
[1756638290143,0.6812052,4448.8,4448.7,0.3141]
[1756638290343,0.6812052,4448.8,4448.7,0.5401]
[1756638291648,0.6812052,4448.8,4448.7,0.4193]